[Event "*** Titled Tuesday Blitz"]
[Site "Chess.com"]
[Date "2020.05.19"]
[Round "8"]
[White "tan275"]
[Black "Asteroxylon"]
[Result "0-1"]
[WhiteElo "2207"]
[BlackElo "2407"]
[TimeControl "180+1"]
[EndTime "13:38:35 PDT"]
[Termination "Asteroxylon won by resignation"]

1. d4 {[%clk 0:03:00.9]} 1... Nf6 {[%clk 0:02:58.9]} 2. c4 {[%clk 0:03:00.4]}
2... e6 {[%clk 0:02:59.2]} 3. g3 {[%clk 0:02:59.1]} 3... d5 {[%clk 0:02:58.2]}
4. Nf3 {[%clk 0:02:58.5]} 4... c5 {[%clk 0:02:58.6]} 5. cxd5 {[%clk 0:02:57.3]}
5... exd5 {[%clk 0:02:59.5]} 6. Bg2 {[%clk 0:02:56.8]} 6... Nc6 {[%clk
0:03:00.1]} 7. O-O {[%clk 0:02:56.2]} 7... Be7 {[%clk 0:03:00.7]} 8. dxc5 {[%clk
0:02:55.6]} 8... Bxc5 {[%clk 0:03:00.2]} 9. Nc3 {[%clk 0:02:49.8]} 9... O-O
{[%clk 0:02:59.6]} 10. Na4 {[%clk 0:02:49.2]} 10... Be7 {[%clk 0:02:57.1]} 11.
Be3 {[%clk 0:02:47.1]} 11... Bg4 {[%clk 0:02:46.6]} 12. Rc1 {[%clk 0:02:39.1]}
12... Rc8 {[%clk 0:02:46.6]} 13. Bc5 {[%clk 0:02:37.1]} 13... Re8 {[%clk
0:02:45.1]} 14. h3 {[%clk 0:02:29.4]} 14... Bh5 {[%clk 0:02:35.6]} 15. g4 {[%clk
0:02:28.6]} 15... Bg6 {[%clk 0:02:34.5]} 16. Nd4 {[%clk 0:02:05.9]} 16... Be4
{[%clk 0:02:20.6]} 17. Bxe4 {[%clk 0:01:41.6]} 17... Nxe4 {[%clk 0:02:17.4]} 18.
Bxe7 {[%clk 0:01:35.9]} 18... Nxe7 {[%clk 0:02:10.1]} 19. Rxc8 {[%clk
0:01:25.3]} 19... Qxc8 {[%clk 0:02:10.1]} 20. Qc1 {[%clk 0:01:20.4]} 20... Qb8
{[%clk 0:01:54.7]} 21. Nc3 {[%clk 0:01:06.2]} 21... Qe5 {[%clk 0:01:48.5]} 22.
Qe3 {[%clk 0:00:55.8]} 22... Ng6 {[%clk 0:01:37.7]} 23. f4 {[%clk 0:00:48.8]}
23... Qd6 {[%clk 0:01:20.1]} 24. Nf5 {[%clk 0:00:40.6]} 24... Qc5 {[%clk
0:00:52.5]} 25. Qxc5 {[%clk 0:00:37.9]} 25... Nxc5 {[%clk 0:00:53.4]} 26. e3
{[%clk 0:00:30.1]} 26... Nd3 {[%clk 0:00:24.4]} 27. Nxd5 {[%clk 0:00:29.3]}
27... Nxb2 {[%clk 0:00:24.3]} 28. Rb1 {[%clk 0:00:28.7]} 28... Nc4 {[%clk
0:00:22.5]} 29. Rxb7 {[%clk 0:00:25.7]} 29... Rd8 {[%clk 0:00:22]} 30. e4 {[%clk
0:00:21]} 30... Nf8 {[%clk 0:00:18.4]} 31. Rxa7 {[%clk 0:00:17.1]} 31... Ne6
{[%clk 0:00:18.1]} 32. Nfe7+ {[%clk 0:00:15.2]} 32... Kf8 {[%clk 0:00:17.6]} 33.
Nc6 {[%clk 0:00:14.8]} 33... Rc8 {[%clk 0:00:17.5]} 34. Nde7 {[%clk 0:00:12.4]}
34... Re8 {[%clk 0:00:16.6]} 35. f5 {[%clk 0:00:10.5]} 35... Ng5 {[%clk
0:00:16.1]} 36. e5 {[%clk 0:00:09.5]} 36... Nf3+ {[%clk 0:00:15.7]} 37. Kf2
{[%clk 0:00:09.2]} 37... Nfxe5 {[%clk 0:00:16.6]} 38. Nxe5 {[%clk 0:00:08.7]}
38... Nxe5 {[%clk 0:00:17.5]} 39. Nd5 {[%clk 0:00:07.6]} 39... Nd3+ {[%clk
0:00:17.7]} 40. Kf3 {[%clk 0:00:06.1]} 40... Ne1+ {[%clk 0:00:18.1]} 41. Kf2
{[%clk 0:00:06]} 41... Nd3+ {[%clk 0:00:18.3]} 42. Kg3 {[%clk 0:00:06.2]} 42...
g5 {[%clk 0:00:16.8]} 43. a4 {[%clk 0:00:06.3]} 43... Ne1 {[%clk 0:00:14.6]} 44.
a5 {[%clk 0:00:05.8]} 44... Re2 {[%clk 0:00:14.6]} 45. h4 {[%clk 0:00:04.4]}
45... h6 {[%clk 0:00:12.9]} 46. f6 {[%clk 0:00:03]} 46... Kg8 {[%clk 0:00:09.8]}
47. hxg5 {[%clk 0:00:03]} 47... hxg5 {[%clk 0:00:09.7]} 48. Kh3 {[%clk
0:00:03.9]} 48... Kh7 {[%clk 0:00:09.8]} 49. Ra8 {[%clk 0:00:03.5]} 49... Nf3
{[%clk 0:00:07.3]} 50. a6 {[%clk 0:00:03.9]} 50... Ng1+ {[%clk 0:00:06.1]} 51.
Kg3 {[%clk 0:00:04]} 51... Ra2 {[%clk 0:00:05.6]} 52. a7 {[%clk 0:00:04.1]}
52... Ne2+ {[%clk 0:00:06.5]} 53. Kf3 {[%clk 0:00:02.7]} 53... Nd4+ {[%clk
0:00:07.1]} 54. Ke4 {[%clk 0:00:03.5]} 54... Nc6 {[%clk 0:00:07.6]} 55. Kf5
{[%clk 0:00:03.6]} 55... Rxa7 {[%clk 0:00:06.7]} 56. Ke4 {[%clk 0:00:04.5]}
56... Rxa8 {[%clk 0:00:06.3]} 57. Ne7 {[%clk 0:00:05.3]} 57... Ra4+ {[%clk
0:00:06.8]} 58. Kd5 {[%clk 0:00:05.3]} 58... Nd8 {[%clk 0:00:07.2]} 59. Kd6
{[%clk 0:00:05.2]} 59... Rd4+ {[%clk 0:00:06.5]} 60. Kc7 {[%clk 0:00:05.4]}
60... Ne6+ {[%clk 0:00:06.7]} 61. Kc8 {[%clk 0:00:06.3]} 61... Rxg4 {[%clk
0:00:07]} 62. Kd7 {[%clk 0:00:05.8]} 62... Rc4 {[%clk 0:00:07.5]} 63. Ke8 {[%clk
0:00:06.7]} 63... g4 {[%clk 0:00:05.2]} 64. Kd7 {[%clk 0:00:07.6]} 64... Ng5
{[%clk 0:00:05]} 65. Nf5 {[%clk 0:00:07.6]} 65... Kg6 {[%clk 0:00:04.3]} 66. Ke7
{[%clk 0:00:08.5]} 66... Kxf5 {[%clk 0:00:03.8]} 67. Kf8 {[%clk 0:00:09.2]}
67... g3 {[%clk 0:00:04.7]} 68. Kg7 {[%clk 0:00:09.6]} 68... Rg4 {[%clk
0:00:04.7]} 69. Kf8 {[%clk 0:00:10.5]} 69... Ne6+ {[%clk 0:00:04.9]} 70. Ke8
{[%clk 0:00:10.4]} 70... Kxf6 {[%clk 0:00:05.3]} 71. Kd7 {[%clk 0:00:11.3]}
71... g2 {[%clk 0:00:06.2]} 72. Kd6 {[%clk 0:00:11.9]} 72... g1=Q {[%clk
0:00:06.6]} 73. Kd7 {[%clk 0:00:10.6]} 73... Qa7+ {[%clk 0:00:07]} 74. Kd6
{[%clk 0:00:10.6]} 74... Rd4+ {[%clk 0:00:06.7]} 75. Kc6 {[%clk 0:00:09.3]}
75... Qc5+ {[%clk 0:00:06.7]} 76. Kb7 {[%clk 0:00:09.5]} 76... Rb4+ {[%clk
0:00:06.9]} 0-1

[Event "*** Titled Tuesday Blitz"]
[Site "Chess.com"]
[Date "2020.05.19"]
[Round "8"]
[White "ChessicallyInclined"]
[Black "Last7Samurai"]
[Result "1/2-1/2"]
[WhiteElo "2511"]
[BlackElo "2798"]
[TimeControl "180+1"]
[EndTime "13:38:51 PDT"]
[Termination "Game drawn by 50-move rule"]

1. d4 {[%clk 0:01:41.4]} 1... d5 {[%clk 0:02:58.6]} 2. c4 {[%clk 0:01:41.4]}
2... c6 {[%clk 0:02:58.4]} 3. Nf3 {[%clk 0:01:41.6]} 3... Nf6 {[%clk 0:02:58.2]}
4. e3 {[%clk 0:01:42.1]} 4... Bf5 {[%clk 0:02:57.3]} 5. Nc3 {[%clk 0:01:42.3]}
5... e6 {[%clk 0:02:57.4]} 6. Nh4 {[%clk 0:01:42.2]} 6... Be4 {[%clk 0:02:57]}
7. f3 {[%clk 0:01:42.3]} 7... Bg6 {[%clk 0:02:56.5]} 8. Bd2 {[%clk 0:01:42.9]}
8... Nbd7 {[%clk 0:02:56]} 9. g3 {[%clk 0:01:43.1]} 9... Be7 {[%clk 0:02:55.7]}
10. Nxg6 {[%clk 0:01:43.1]} 10... hxg6 {[%clk 0:02:56.6]} 11. Bg2 {[%clk
0:01:40.4]} 11... dxc4 {[%clk 0:02:53.5]} 12. e4 {[%clk 0:01:40.4]} 12... e5
{[%clk 0:02:53.1]} 13. Be3 {[%clk 0:01:30.2]} 13... exd4 {[%clk 0:02:49.6]} 14.
Bxd4 {[%clk 0:01:31.1]} 14... Bc5 {[%clk 0:02:47.9]} 15. f4 {[%clk 0:01:17]}
15... O-O {[%clk 0:02:45.1]} 16. e5 {[%clk 0:01:16.7]} 16... Ne8 {[%clk
0:02:03]} 17. Ne4 {[%clk 0:01:12.5]} 17... Bxd4 {[%clk 0:02:02.6]} 18. Qxd4
{[%clk 0:01:13.4]} 18... Nb6 {[%clk 0:02:00.3]} 19. Qxd8 {[%clk 0:01:05.8]}
19... Rxd8 {[%clk 0:02:01.2]} 20. Nc5 {[%clk 0:01:06.2]} 20... Nd5 {[%clk
0:01:53.8]} 21. Nxb7 {[%clk 0:00:52.6]} 21... Rb8 {[%clk 0:01:53.2]} 22. Na5
{[%clk 0:00:52.5]} 22... Rxb2 {[%clk 0:01:50.9]} 23. O-O {[%clk 0:00:52.2]}
23... c3 {[%clk 0:01:36.4]} 24. Nxc6 {[%clk 0:00:51.7]} 24... Ne3 {[%clk
0:01:36.1]} 25. Rf2 {[%clk 0:00:36.8]} 25... Nc7 {[%clk 0:01:29.6]} 26. Rxb2
{[%clk 0:00:30.7]} 26... cxb2 {[%clk 0:01:30.5]} 27. Rb1 {[%clk 0:00:30.3]}
27... Nc4 {[%clk 0:01:14.8]} 28. Bf1 {[%clk 0:00:28.4]} 28... Nb6 {[%clk
0:00:59.8]} 29. Rxb2 {[%clk 0:00:27.7]} 29... f6 {[%clk 0:01:00.2]} 30. Nxa7
{[%clk 0:00:24.2]} 30... Nbd5 {[%clk 0:00:59.1]} 31. exf6 {[%clk 0:00:23.5]}
31... gxf6 {[%clk 0:00:56.7]} 32. Nc6 {[%clk 0:00:22.1]} 32... Kg7 {[%clk
0:00:53.8]} 33. a4 {[%clk 0:00:20.6]} 33... Kh6 {[%clk 0:00:54]} 34. a5 {[%clk
0:00:21.1]} 34... Ra8 {[%clk 0:00:41.8]} 35. Kf2 {[%clk 0:00:20.9]} 35... g5
{[%clk 0:00:40.3]} 36. fxg5+ {[%clk 0:00:17.8]} 36... fxg5 {[%clk 0:00:41.2]}
37. Bc4 {[%clk 0:00:16]} 37... Rf8+ {[%clk 0:00:39.8]} 38. Ke2 {[%clk
0:00:15.7]} 38... Nc3+ {[%clk 0:00:38.9]} 39. Kd3 {[%clk 0:00:15.5]} 39... Na4
{[%clk 0:00:39.5]} 40. Re2 {[%clk 0:00:13.5]} 40... Rf6 {[%clk 0:00:32]} 41. Ne5
{[%clk 0:00:11.8]} 41... Rf1 {[%clk 0:00:28.4]} 42. Kc2 {[%clk 0:00:10.9]} 42...
Ra1 {[%clk 0:00:24.4]} 43. Ng4+ {[%clk 0:00:07.4]} 43... Kh5 {[%clk 0:00:24.5]}
44. Nf6+ {[%clk 0:00:07.6]} 44... Kg6 {[%clk 0:00:24.3]} 45. Ne4 {[%clk
0:00:06.6]} 45... g4 {[%clk 0:00:15.4]} 46. Bb3 {[%clk 0:00:06.9]} 46... Nb5
{[%clk 0:00:13.8]} 47. Bxa4 {[%clk 0:00:06.6]} 47... Rxa4 {[%clk 0:00:14.7]} 48.
Nc3 {[%clk 0:00:04.7]} 48... Rxa5 {[%clk 0:00:11.8]} 49. Re5 {[%clk 0:00:03]}
49... Nd4+ {[%clk 0:00:11.4]} 50. Kd3 {[%clk 0:00:02.8]} 50... Rxe5 {[%clk
0:00:12.3]} 51. Kxd4 {[%clk 0:00:03.6]} 51... Re1 {[%clk 0:00:12.8]} 52. Ne4
{[%clk 0:00:03.9]} 52... Rh1 {[%clk 0:00:12.9]} 53. Nf2 {[%clk 0:00:04.4]} 53...
Rxh2 {[%clk 0:00:13.2]} 54. Nxg4 {[%clk 0:00:04.9]} 54... Rg2 {[%clk 0:00:13.8]}
55. Ne3 {[%clk 0:00:05.8]} 55... Rxg3 {[%clk 0:00:13.6]} 56. Ke4 {[%clk
0:00:06.7]} 56... Rg1 {[%clk 0:00:14]} 57. Nd5 {[%clk 0:00:07.2]} 57... Ra1
{[%clk 0:00:14.9]} 58. Kf3 {[%clk 0:00:07.4]} 58... Ra4 {[%clk 0:00:15.2]} 59.
Ne3 {[%clk 0:00:07.4]} 59... Kg5 {[%clk 0:00:15.3]} 60. Ke2 {[%clk 0:00:07.7]}
60... Kf4 {[%clk 0:00:15.4]} 61. Nd5+ {[%clk 0:00:07.7]} 61... Ke5 {[%clk
0:00:15.8]} 62. Nc3 {[%clk 0:00:08]} 62... Ra3 {[%clk 0:00:15.8]} 63. Kd3 {[%clk
0:00:08.1]} 63... Rb3 {[%clk 0:00:15.4]} 64. Kc4 {[%clk 0:00:08.5]} 64... Rb8
{[%clk 0:00:16.3]} 65. Kd3 {[%clk 0:00:08.6]} 65... Rc8 {[%clk 0:00:16.6]} 66.
Ne2 {[%clk 0:00:08.5]} 66... Rh8 {[%clk 0:00:16.6]} 67. Nc3 {[%clk 0:00:07.8]}
67... Rh4 {[%clk 0:00:17.2]} 68. Ne2 {[%clk 0:00:05.7]} 68... Rh3+ {[%clk
0:00:17.2]} 69. Kd2 {[%clk 0:00:06.2]} 69... Ke4 {[%clk 0:00:16.8]} 70. Nc3+
{[%clk 0:00:06.2]} 70... Kd4 {[%clk 0:00:17.2]} 71. Ne2+ {[%clk 0:00:06.3]}
71... Kc4 {[%clk 0:00:17.7]} 72. Nf4 {[%clk 0:00:06.7]} 72... Rf3 {[%clk
0:00:17.7]} 73. Ne2 {[%clk 0:00:06.9]} 73... Ra3 {[%clk 0:00:17.3]} 74. Ke1
{[%clk 0:00:06.7]} 74... Ra2 {[%clk 0:00:16.3]} 75. Kf1 {[%clk 0:00:05.6]} 75...
Rb2 {[%clk 0:00:14.5]} 76. Nf4 {[%clk 0:00:06]} 76... Kd4 {[%clk 0:00:14.3]} 77.
Ke1 {[%clk 0:00:05.4]} 77... Ke3 {[%clk 0:00:13.9]} 78. Nd5+ {[%clk 0:00:05.9]}
78... Kd3 {[%clk 0:00:13.9]} 79. Nf4+ {[%clk 0:00:05.9]} 79... Ke4 {[%clk
0:00:14.3]} 80. Nh3 {[%clk 0:00:05.1]} 80... Ke3 {[%clk 0:00:14.4]} 81. Kf1
{[%clk 0:00:05.1]} 81... Kf3 {[%clk 0:00:14.2]} 82. Ng5+ {[%clk 0:00:05.1]}
82... Kf4 {[%clk 0:00:14.1]} 83. Ne6+ {[%clk 0:00:05.1]} 83... Ke3 {[%clk
0:00:14.4]} 84. Kg1 {[%clk 0:00:04.9]} 84... Rb6 {[%clk 0:00:12.8]} 85. Nc5
{[%clk 0:00:03.3]} 85... Rc6 {[%clk 0:00:13.1]} 86. Nd7 {[%clk 0:00:03.7]} 86...
Rd6 {[%clk 0:00:11.5]} 87. Ne5 {[%clk 0:00:04]} 87... Ke4 {[%clk 0:00:10.2]} 88.
Nc4 {[%clk 0:00:03.3]} 88... Rf6 {[%clk 0:00:06.8]} 89. Kg2 {[%clk 0:00:02.9]}
89... Kd4 {[%clk 0:00:06]} 90. Nd2 {[%clk 0:00:03.2]} 90... Ke3 {[%clk
0:00:06.4]} 91. Nf1+ {[%clk 0:00:03.7]} 91... Kf4 {[%clk 0:00:06.7]} 92. Kf2
{[%clk 0:00:04]} 92... Ra6 {[%clk 0:00:06.7]} 93. Ke2 {[%clk 0:00:04.6]} 93...
Ra2+ {[%clk 0:00:07.6]} 94. Nd2 {[%clk 0:00:04.5]} 94... Ke5 {[%clk 0:00:08.5]}
95. Kd3 {[%clk 0:00:05.1]} 95... Ra3+ {[%clk 0:00:08.4]} 96. Kc4 {[%clk
0:00:05.4]} 96... Rh3 {[%clk 0:00:09.3]} 97. Nb3 {[%clk 0:00:05.5]} 97... Rh8
{[%clk 0:00:08.8]} 98. Nc5 {[%clk 0:00:05.8]} 98... Rc8 {[%clk 0:00:09.7]} 99.
Kb5 {[%clk 0:00:06]} 99... Kd5 {[%clk 0:00:10.4]} 100. Nb3 {[%clk 0:00:05.8]}
100... Rc3 {[%clk 0:00:10.5]} 101. Kb4 {[%clk 0:00:06.1]} 101... Rc4+ {[%clk
0:00:10.6]} 102. Ka3 {[%clk 0:00:06]} 102... Rc8 {[%clk 0:00:11.5]} 103. Kb2
{[%clk 0:00:06.4]} 103... Kc4 {[%clk 0:00:11.8]} 104. Nd2+ {[%clk 0:00:06.9]}
104... Kd3 {[%clk 0:00:12.3]} 105. Nb3 {[%clk 0:00:07.3]} 105... Rb8 {[%clk
0:00:12.9]} 1/2-1/2

[Event "*** Titled Tuesday Blitz"]
[Site "Chess.com"]
[Date "2020.05.19"]
[Round "8"]
[White "IngOscarArdila"]
[Black "mshuaau0"]
[Result "1/2-1/2"]
[WhiteElo "2044"]
[BlackElo "2229"]
[TimeControl "180+1"]
[EndTime "13:39:14 PDT"]
[Termination "Game drawn by repetition"]

1. d4 {[%clk 0:03:00.9]} 1... d5 {[%clk 0:02:59.7]} 2. Nf3 {[%clk 0:03:00.7]}
2... Nf6 {[%clk 0:02:59.2]} 3. g3 {[%clk 0:03:00.7]} 3... e6 {[%clk 0:02:58.9]}
4. Bg2 {[%clk 0:03:01.1]} 4... Be7 {[%clk 0:02:59.2]} 5. O-O {[%clk 0:03:01.6]}
5... O-O {[%clk 0:02:59.7]} 6. Nbd2 {[%clk 0:03:00.8]} 6... b5 {[%clk
0:02:56.7]} 7. c3 {[%clk 0:02:59.8]} 7... a6 {[%clk 0:02:54.6]} 8. Re1 {[%clk
0:02:59.7]} 8... Bb7 {[%clk 0:02:53.7]} 9. Ne5 {[%clk 0:02:58.5]} 9... Nbd7
{[%clk 0:02:52.5]} 10. Ndf3 {[%clk 0:02:57.9]} 10... c5 {[%clk 0:02:52]} 11. Bf4
{[%clk 0:02:51.2]} 11... Nxe5 {[%clk 0:02:49.6]} 12. Nxe5 {[%clk 0:02:49.4]}
12... Nd7 {[%clk 0:02:49]} 13. Rc1 {[%clk 0:02:47.6]} 13... Nxe5 {[%clk
0:02:46.9]} 14. Bxe5 {[%clk 0:02:47]} 14... Bd6 {[%clk 0:02:44.8]} 15. Bxd6
{[%clk 0:02:45.3]} 15... Qxd6 {[%clk 0:02:44.7]} 16. e3 {[%clk 0:02:44.5]} 16...
c4 {[%clk 0:02:35.7]} 17. a3 {[%clk 0:02:38.1]} 17... a5 {[%clk 0:02:34.6]} 18.
Qd2 {[%clk 0:02:36.5]} 18... Bc6 {[%clk 0:02:33.7]} 19. Ra1 {[%clk 0:02:35.1]}
19... h5 {[%clk 0:02:29.2]} 20. h4 {[%clk 0:02:34]} 20... g6 {[%clk 0:02:23.3]}
21. e4 {[%clk 0:02:26]} 21... dxe4 {[%clk 0:02:23.3]} 22. Bxe4 {[%clk 0:02:26]}
22... Bxe4 {[%clk 0:02:22.3]} 23. Rxe4 {[%clk 0:02:26]} 23... b4 {[%clk
0:02:16.3]} 24. axb4 {[%clk 0:02:25.3]} 24... axb4 {[%clk 0:02:15.9]} 25. Ree1
{[%clk 0:02:12.8]} 25... b3 {[%clk 0:02:12.6]} 26. Qh6 {[%clk 0:02:10.3]} 26...
Qd5 {[%clk 0:02:02.8]} 27. Qg5 {[%clk 0:01:48.1]} 27... Ra2 {[%clk 0:01:54.2]}
28. Rab1 {[%clk 0:01:43.7]} 28... Qxg5 {[%clk 0:01:50]} 29. hxg5 {[%clk
0:01:43.4]} 29... Rd8 {[%clk 0:01:48.8]} 30. f4 {[%clk 0:01:42.9]} 30... Rd5
{[%clk 0:01:47]} 31. Kf2 {[%clk 0:01:30.8]} 31... Rda5 {[%clk 0:01:46.7]} 32.
Ke3 {[%clk 0:01:29.4]} 32... Kf8 {[%clk 0:01:44.4]} 33. Ke4 {[%clk 0:01:28.9]}
33... Ke7 {[%clk 0:01:43.1]} 34. Rh1 {[%clk 0:01:23.4]} 34... Kd6 {[%clk
0:01:41.1]} 35. Rhd1 {[%clk 0:01:21.9]} 35... Ra8 {[%clk 0:01:34.5]} 36. Rh1
{[%clk 0:01:19.6]} 36... Rh8 {[%clk 0:01:34.2]} 37. Rh4 {[%clk 0:01:12.5]} 37...
Rha8 {[%clk 0:01:28.7]} 38. Rhh1 {[%clk 0:01:12.2]} 38... Ke7 {[%clk 0:01:28.4]}
39. Rhg1 {[%clk 0:01:11.4]} 39... f6 {[%clk 0:01:26]} 40. gxf6+ {[%clk 0:01:11]}
40... Kxf6 {[%clk 0:01:26.1]} 41. Rgd1 {[%clk 0:01:09.2]} 41... R8a5 {[%clk
0:01:21.3]} 42. Rf1 {[%clk 0:01:07.9]} 42... Kg7 {[%clk 0:01:16.2]} 43. Rfd1
{[%clk 0:01:06.7]} 43... g5 {[%clk 0:01:13.8]} 44. d5 {[%clk 0:00:56.1]} 44...
gxf4 {[%clk 0:01:03.1]} 45. gxf4 {[%clk 0:00:55.1]} 45... Kf6 {[%clk 0:00:47.7]}
46. d6 {[%clk 0:00:47.6]} 46... Ra8 {[%clk 0:00:43]} 47. Rd4 {[%clk 0:00:46.1]}
47... R2a4 {[%clk 0:00:29.6]} 48. Rh1 {[%clk 0:00:42.1]} 48... Rh8 {[%clk
0:00:28.4]} 49. d7 {[%clk 0:00:40.6]} 49... Ke7 {[%clk 0:00:28.6]} 50. Rxh5
{[%clk 0:00:35.5]} 50... Rd8 {[%clk 0:00:21.5]} 51. Rh7+ {[%clk 0:00:32.2]}
51... Kf6 {[%clk 0:00:21.7]} 52. Rh6+ {[%clk 0:00:29.9]} 52... Ke7 {[%clk
0:00:21.5]} 53. Rh5 {[%clk 0:00:22.3]} 53... Ra2 {[%clk 0:00:16.8]} 54. Rh2
{[%clk 0:00:19.2]} 54... Kf6 {[%clk 0:00:14]} 55. Rd6 {[%clk 0:00:15.4]} 55...
Ke7 {[%clk 0:00:13.8]} 56. Rd4 {[%clk 0:00:15.1]} 56... Kf6 {[%clk 0:00:13.4]}
57. Rxc4 {[%clk 0:00:15.1]} 57... Rxd7 {[%clk 0:00:13.3]} 58. Rb4 {[%clk
0:00:15]} 58... Rd5 {[%clk 0:00:07.6]} 59. Rxb3 {[%clk 0:00:14.6]} 59... Ra4+
{[%clk 0:00:07.7]} 60. Rb4 {[%clk 0:00:14.2]} 60... Rxb4+ {[%clk 0:00:07.9]} 61.
cxb4 {[%clk 0:00:14.4]} 61... Rb5 {[%clk 0:00:08.8]} 62. Rh6+ {[%clk 0:00:11.5]}
62... Ke7 {[%clk 0:00:08.1]} 63. Rh7+ {[%clk 0:00:11]} 63... Kf6 {[%clk
0:00:08.2]} 64. Rh6+ {[%clk 0:00:10.9]} 64... Ke7 {[%clk 0:00:08.5]} 65. Rh7+
{[%clk 0:00:03.3]} 65... Kd6 {[%clk 0:00:08.8]} 66. Rh6 {[%clk 0:00:03.4]} 66...
Rxb4+ {[%clk 0:00:09.1]} 67. Ke3 {[%clk 0:00:03.7]} 67... Rxb2 {[%clk 0:00:10]}
68. f5 {[%clk 0:00:04]} 68... Rb3+ {[%clk 0:00:10.3]} 69. Kd2 {[%clk 0:00:03.9]}
69... Rb2+ {[%clk 0:00:07.7]} 70. Kc3 {[%clk 0:00:03.9]} 70... Rf2 {[%clk
0:00:07.4]} 71. Rxe6+ {[%clk 0:00:02.4]} 71... Kd7 {[%clk 0:00:07.8]} 72. Rf6
{[%clk 0:00:02.8]} 72... Ke7 {[%clk 0:00:07.9]} 73. Re6+ {[%clk 0:00:03.1]}
73... Kf7 {[%clk 0:00:08.2]} 74. Re5 {[%clk 0:00:03.6]} 74... Kf6 {[%clk
0:00:08.7]} 75. Rb5 {[%clk 0:00:04.1]} 75... Rf3+ {[%clk 0:00:09.6]} 76. Kd4
{[%clk 0:00:03.8]} 76... Rf4+ {[%clk 0:00:10.5]} 77. Ke3 {[%clk 0:00:04]} 77...
Rf1 {[%clk 0:00:11.2]} 78. Ke4 {[%clk 0:00:04.2]} 78... Re1+ {[%clk 0:00:11.5]}
79. Kf4 {[%clk 0:00:04.6]} 79... Rf1+ {[%clk 0:00:11.9]} 80. Ke4 {[%clk
0:00:05]} 80... Re1+ {[%clk 0:00:12.4]} 81. Kf4 {[%clk 0:00:05.4]} 81... Rc1
{[%clk 0:00:13.3]} 82. Kg4 {[%clk 0:00:05.5]} 82... Rc4+ {[%clk 0:00:12.7]} 83.
Kf3 {[%clk 0:00:05.7]} 83... Ra4 {[%clk 0:00:12.3]} 84. Rc5 {[%clk 0:00:05.1]}
84... Rb4 {[%clk 0:00:12.1]} 85. Rd5 {[%clk 0:00:05.2]} 85... Rc4 {[%clk
0:00:12.6]} 86. Ra5 {[%clk 0:00:05.1]} 86... Rb4 {[%clk 0:00:13.1]} 87. Rd5
{[%clk 0:00:05.4]} 87... Rc4 {[%clk 0:00:13.4]} 88. Ra5 {[%clk 0:00:05.5]} 88...
Rd4 {[%clk 0:00:13.8]} 89. Rc5 {[%clk 0:00:05.5]} 89... Ra4 {[%clk 0:00:14.1]}
90. Rd5 {[%clk 0:00:05.6]} 90... Rb4 {[%clk 0:00:13.9]} 91. Rc5 {[%clk
0:00:05.8]} 91... Rh4 {[%clk 0:00:14.1]} 92. Ra5 {[%clk 0:00:05.9]} 92... Rh1
{[%clk 0:00:13]} 93. Kf4 {[%clk 0:00:05.6]} 93... Rg1 {[%clk 0:00:13.2]} 94.
Ra6+ {[%clk 0:00:04.9]} 94... Kf7 {[%clk 0:00:13.6]} 95. Ke5 {[%clk 0:00:05.2]}
95... Re1+ {[%clk 0:00:13.6]} 96. Kf4 {[%clk 0:00:05.5]} 96... Rf1+ {[%clk
0:00:14]} 97. Kg5 {[%clk 0:00:06]} 97... Rg1+ {[%clk 0:00:14.4]} 98. Kf4 {[%clk
0:00:05.9]} 98... Re1 {[%clk 0:00:13.7]} 99. Kg5 {[%clk 0:00:04.8]} 99... Rg1+
{[%clk 0:00:13.6]} 100. Kf4 {[%clk 0:00:05.1]} 100... Rf1+ {[%clk 0:00:13.6]}
101. Kg5 {[%clk 0:00:05.5]} 101... Rg1+ {[%clk 0:00:13.7]} 1/2-1/2

[Event "*** Titled Tuesday Blitz"]
[Site "Chess.com"]
[Date "2020.05.19"]
[Round "9"]
[White "AlanZhang"]
[Black "Kavyev_Ruslan"]
[Result "0-1"]
[WhiteElo "2231"]
[BlackElo "2453"]
[TimeControl "180+1"]
[EndTime "13:41:03 PDT"]
[Termination "Kavyev_Ruslan won by resignation"]

1. e4 {[%clk 0:03:00.9]} 1... c5 {[%clk 0:02:59.5]} 2. Nf3 {[%clk 0:03:01.1]}
2... d6 {[%clk 0:02:59.5]} 3. d4 {[%clk 0:03:01.4]} 3... cxd4 {[%clk 0:03:00.4]}
4. Nxd4 {[%clk 0:03:01.6]} 4... Nf6 {[%clk 0:03:00.9]} 5. Nc3 {[%clk 0:03:02]}
5... a6 {[%clk 0:03:01]} 6. h3 {[%clk 0:03:02.2]} 6... e5 {[%clk 0:03:00.9]} 7.
Nb3 {[%clk 0:03:01.6]} 7... Be6 {[%clk 0:03:00.3]} 8. f4 {[%clk 0:02:59.8]} 8...
g6 {[%clk 0:02:59.2]} 9. Qf3 {[%clk 0:02:44.5]} 9... Nc6 {[%clk 0:02:54.5]} 10.
f5 {[%clk 0:02:18.4]} 10... gxf5 {[%clk 0:02:55.4]} 11. exf5 {[%clk 0:02:18.7]}
11... Bxb3 {[%clk 0:02:49.2]} 12. axb3 {[%clk 0:02:19.6]} 12... Nd4 {[%clk
0:02:50.1]} 13. Qe4 {[%clk 0:02:18.9]} 13... Nxe4 {[%clk 0:02:47.2]} 0-1

[Event "*** Titled Tuesday Blitz"]
[Site "Chess.com"]
[Date "2020.05.19"]
[Round "9"]
[White "WeAintSurePal"]
[Black "eightbyeightchess"]
[Result "1-0"]
[WhiteElo "2312"]
[BlackElo "2514"]
[TimeControl "180+1"]
[EndTime "13:41:41 PDT"]
[Termination "WeAintSurePal won by resignation"]

1. d4 {[%clk 0:03:00.9]} 1... d5 {[%clk 0:02:59.3]} 2. c4 {[%clk 0:02:59.5]}
2... c6 {[%clk 0:02:59.4]} 3. Nc3 {[%clk 0:02:56.7]} 3... Nf6 {[%clk 0:02:59.7]}
4. cxd5 {[%clk 0:02:55.6]} 4... cxd5 {[%clk 0:03:00.3]} 5. Bf4 {[%clk
0:02:54.9]} 5... Nc6 {[%clk 0:03:01]} 6. e3 {[%clk 0:02:54.6]} 6... e6 {[%clk
0:02:58]} 7. Nf3 {[%clk 0:02:54.1]} 7... Bd6 {[%clk 0:02:58]} 8. Bg3 {[%clk
0:02:47.1]} 8... O-O {[%clk 0:02:58.2]} 9. a3 {[%clk 0:02:47.3]} 9... Rb8 {[%clk
0:02:58.3]} 10. Bd3 {[%clk 0:02:46.9]} 10... a6 {[%clk 0:02:58.8]} 11. Ne5
{[%clk 0:02:44.9]} 11... Qe7 {[%clk 0:02:48.5]} 12. O-O {[%clk 0:02:40.1]} 12...
Bd7 {[%clk 0:02:34.6]} 13. f4 {[%clk 0:02:36.8]} 13... b5 {[%clk 0:02:33.1]} 14.
Bh4 {[%clk 0:02:35.5]} 14... b4 {[%clk 0:02:28.7]} 15. Nxd7 {[%clk 0:02:31.8]}
15... Qxd7 {[%clk 0:02:28.1]} 16. Bxf6 {[%clk 0:02:31.6]} 16... gxf6 {[%clk
0:02:28.6]} 17. Bxh7+ {[%clk 0:02:31.4]} 17... Kxh7 {[%clk 0:02:21.3]} 18. Qh5+
{[%clk 0:02:30.4]} 18... Kg7 {[%clk 0:02:21.8]} 19. Qg4+ {[%clk 0:02:31.3]}
19... Kh8 {[%clk 0:02:21.9]} 20. Rf3 {[%clk 0:02:32.2]} 1-0

[Event "*** Titled Tuesday Blitz"]
[Site "Chess.com"]
[Date "2020.05.19"]
[Round "9"]
[White "ChadBiryani"]
[Black "Zq1"]
[Result "0-1"]
[WhiteElo "2294"]
[BlackElo "2497"]
[TimeControl "180+1"]
[EndTime "13:41:44 PDT"]
[Termination "Zq1 won by resignation"]

1. d4 {[%clk 0:02:53.6]} 1... Nf6 {[%clk 0:02:57.3]} 2. Bf4 {[%clk 0:02:48.5]}
2... g6 {[%clk 0:02:54]} 3. e3 {[%clk 0:02:47.2]} 3... Bg7 {[%clk 0:02:54.4]} 4.
Be2 {[%clk 0:02:47.7]} 4... O-O {[%clk 0:02:54.5]} 5. h4 {[%clk 0:02:48.3]} 5...
h5 {[%clk 0:02:53.3]} 6. Nf3 {[%clk 0:02:47.4]} 6... d6 {[%clk 0:02:53.2]} 7. c4
{[%clk 0:02:42.6]} 7... c5 {[%clk 0:02:51.3]} 8. Nc3 {[%clk 0:02:41.5]} 8...
cxd4 {[%clk 0:02:49.7]} 9. exd4 {[%clk 0:02:42.4]} 9... d5 {[%clk 0:02:48.9]}
10. c5 {[%clk 0:02:40.3]} 10... Nc6 {[%clk 0:02:47.7]} 11. a3 {[%clk 0:02:35.2]}
11... Ne4 {[%clk 0:02:45.7]} 12. O-O {[%clk 0:02:29]} 12... Bg4 {[%clk
0:02:43.3]} 13. Be3 {[%clk 0:02:23.7]} 13... e6 {[%clk 0:02:34.3]} 14. Qd2
{[%clk 0:02:17]} 14... Nxd2 {[%clk 0:02:32]} 0-1